[Event "Djerba Festival Open-A 2024"]
[Site "Djerba"]
[Date "2024.02.22"]
[Round "5.1"]
[White "Abbes, Ali"]
[Black "Rudzinska, Michalina"]
[Result "0-1"]
[ECO "A04"]
[WhiteElo "2218"]
[BlackElo "2241"]
[Annotator "TA"]
[PlyCount "150"]
[EventDate "2024.02.18"]
[EventType "swiss"]
[EventCountry "TUN"]
[SourceTitle "playchess.com"]
[Source "ChessBase"]
[SourceQuality "1"]
[TimeControl "5400+30"]

{[%evp 9,150,20,21,22,55,54,60,63,83,31,29,32,33,15,27,24,20,28,17,24,43,39,46,30,54,64,88,0,0,0,0,0,0,-55,41,0,0,0,-5,-20,-17,-16,-17,-22,-12,-22,-25,-28,-37,-59,-55,-48,-52,-212,-207,-358,-332,-370,-358,-369,-344,-539,-539,-1007,-990,-1135,-385,-340,-143,-248,-234,-457,-446,-436,-8,-8,-8,-8,-8,-12,0,0,0,0,0,0,0,0,0,0,0,0,0,-202,-167,-200,-203,-227,0,-225,-218,-231,-213,-205,-11,-211,-204,-231,-237,-240,-222,-222,-222,-253,-224,-249,-31,-211,-35,-45,-52,-43,0,0,-6,-13,0,0,0,0,0,0,0,-46,-46,-46,-46,-29977,-29978,-29989,-29990,-29990,-29991]} 1. Nf3 {[%emt 0:03:47]} Nf6 {[%emt 0:00:12]} 2. g3 {[%emt 0:00:20]} b6 {[%emt 0:00:22]} 3. Bg2 {[%emt 0:00:13]} Bb7 {[%emt 0:00:10]} 4. O-O {[%emt 0:00:17]} c5 {[%emt 0:00:34]} 5. d3 {[%emt 0:00:37]} d5 {[%emt 0:02:34]} 6. c4 {[%emt 0:02:02]} g6 {[%emt 0:07:01]} 7. Ne5 {[%emt 0:02:54]} Nbd7 {[%emt 0:06:05]} 8. Qa4 $1 {[%emt 0:00:20] White is slightly better.} Qc8 {[%emt 0:06:34]} 9. cxd5 {[%emt 0:17:33]} (9. Bg5 $16 {aiming for Bh3.} Bg7 10. Nc3) 9... Bxd5 {[%emt 0:02:59]} 10. e4 {[%emt 0:00:54]} Bb7 {[%emt 0:01:55]} 11. Bh3 {[%emt 0:07:48] Black must now prevent Bg5.} (11. Nd2 {simplifies} a6 12. Nxd7 Nxd7 13. Qb3) 11... e6 {[%emt 0:03:18]} 12. Bg5 {[%emt 0:04:27]} Bg7 {[%emt 0:02:01][%cal Of6e4]} 13. Nc3 {[%emt 0:05:53]} O-O {[%emt 0:03:28]} 14. Nc4 {[%emt 0:01:41]} Bc6 {[%emt 0:02:56]} 15. Qb3 {[%emt 0:00:54]} h6 {[%emt 0:11:29]} 16. Bf4 {[%emt 0:01:40]} Nh5 {[%emt 0:02:39]} 17. Bd6 {[%emt 0:01:12]} Re8 {[%emt 0:00:22]} 18. Nb5 {[%emt 0:02:20]} ({Better is} 18. e5 $16) 18... Bxb5 $11 {[%emt 0:01:28]} 19. Qxb5 {[%emt 0:00:11]} a6 $1 {[%emt 0:01:41]} 20. Qb3 {[%emt 0:00:45]} b5 {[%emt 0:01:02]} 21. Ne3 {[%emt 0:05:42]} (21. Nd2 $11) 21... Ne5 {[%emt 0:12:19]} (21... Qd8 $15) 22. f4 {[%emt 0:02:52]} (22. Bg2 $14) 22... c4 {[%emt 0:00:44]} 23. dxc4 {[%emt 0:01:11]} Nxc4 {[%emt 0:01:42]} 24. Nxc4 {[%emt 0:07:25]} bxc4 {[%emt 0:00:07]} 25. Qc2 {[%emt 0:00:22]} Bd4+ {[%emt 0:01:45]} 26. Kh1 {[%emt 0:00:28]} Qc6 {[%emt 0:01:19]} 27. Ba3 {[%emt 0:02:28]} Nf6 {[%emt 0:02:33][%cal Bh5f6,Bf6g4,Bg4e3][%mdl 32]} 28. Bg2 {[%emt 0:00:08]} e5 {[%emt 0:00:34]} 29. Rac1 {[%emt 0:01:43]} Ng4 {[%emt 0:06:42]} 30. Qe2 {[%emt 0:06:35]} Ne3 $36 {[%emt 0:00:33][%mdl 2048] Black has some pressure.} 31. Rf3 {[%emt 0:01:28]} (31. Rfe1 $15) 31... exf4 $1 $19 {[%emt 0:04:20]} (31... Qxe4 32. Rf2 Qd3 (32... Qf5 33. fxe5 Qd7 34. Bxa8 $16) 33. Bxa8 Rxa8 34. fxe5 $16 (34. Qxd3 cxd3 35. fxe5 Ng4 $11)) 32. gxf4 $2 {[%emt 0:08:54]} (32. Rxf4 Rad8 33. Qf3) 32... Nxg2 {[%emt 0:02:38]} (32... Rxe4 33. Rxe3 Bxe3 34. Qxe3 (34. Bxe4 $2 Qxe4+ 35. Qg2 Qxg2+ 36. Kxg2 Bxc1 $19) 34... Rxe3 35. Bxc6 $16) (32... Qxe4 33. Rf2 Nxg2 34. Qxe4 Rxe4 35. Rxg2 $19) 33. Kxg2 {[%emt 0:00:53]} Rxe4 {[%emt 0:01:28]} (33... Qxe4 34. Qxe4 Rxe4 35. Rxc4 $17) 34. Qxc4 {[%emt 0:00:59]} Qd7 {[%emt 0:04:01] Strongly threatening ...Rae8.} 35. f5 {[%emt 0:02:24]} (35. Qc6 $142 Qg4+ 36. Rg3 Re2+ (36... Qxf4 $2 37. Qxa8+ Kh7 38. Rc2 $19) (36... Qe2+ $2 37. Kh1 $19) 37. Kh1) 35... Rae8 {[%emt 0:01:06]} (35... gxf5 36. Qc6 Re2+ 37. Kf1 Qxc6 38. Rxc6 Rxh2 39. Rxf5 $15) 36. Qc6 {[%emt 0:00:48]} Re2+ {[%emt 0:03:15]} 37. Kh1 {[%emt 0:00:46]} Qxc6 $2 {[%emt 0:02:55]} (37... Re1+ 38. Kg2 R8e2+ 39. Kh3 Be5 (39... Qxc6 $2 40. Rxc6 g5 41. Rxh6 $19) 40. Qc8+ Kh7 (40... Qxc8 $2 41. Rxc8+ Kg7 42. Bf8+ Kh7 43. fxg6+ Kxg6 44. Rc6+ f6 45. Rg3+ Bxg3 46. Kxg3 $19)) 38. Rxc6 {[%emt 0:00:08]} Rd2 {[%emt 0:00:12]} (38... Bxb2 39. fxg6 f6 40. Bxb2 (40. Rxa6 Rd2 $17) 40... Rxb2 41. Rcxf6 $17) (38... Re1+ $19 {has better winning chances.} 39. Kg2 g5) 39. Rc1 {[%emt 0:01:17]} (39. Rf1 $17) 39... Ree2 {[%emt 0:00:15]} (39... Bxb2 40. Bxb2 Rxb2 41. fxg6 fxg6 42. Rf6) 40. Bd6 {[%emt 0:01:13]} (40. Rh3) 40... Bxb2 {[%emt 0:00:33]} (40... Rxb2 41. fxg6 f6 (41... fxg6 42. Rf8+ Kh7 43. Rf7+ Bg7 44. Ra7 $11) 42. h4 $17) (40... g5 41. Rff1 $19) 41. fxg6 {[%emt 0:00:52]} fxg6 {[%emt 0:01:44]} (41... Bxc1 $2 42. gxf7+ Kh7 43. f8=Q $18 (43. f8=B $2 Re1+)) (41... f6 $19 42. Rc8+ Kg7 43. Bf8+ Kxg6) 42. Rf8+ $11 {[%emt 0:01:15]} Kh7 {[%emt 0:00:05]} 43. Rf7+ {[%emt 0:00:58]} Bg7 {[%emt 0:00:12]} 44. Bf8 {[%emt 0:00:53]} Rxh2+ {[%emt 0:00:44]} 45. Kg1 {[%emt 0:00:09]} Rdg2+ {[%emt 0:00:51]} 46. Kf1 {[%emt 0:00:08]} Kg8 {[%emt 0:00:03]} 47. Rxg7+ {[%emt 0:01:28]} Kxf8 {[%emt 0:00:06][%mdl 4096] Endgame. KRR-KRR} 48. Rcc7 {[%emt 0:00:22]} Rf2+ {[%emt 0:00:36]} 49. Kg1 {[%emt 0:00:40]} Rfg2+ {[%emt 0:01:06]} 50. Kf1 {[%emt 0:00:09]} Rd2 {[%emt 0:00:51][%cal Rd2d1]} 51. Rcf7+ $2 {[%emt 0:02:38]} (51. Kg1 $11 {and White is okay.}) 51... Ke8 $19 {[%emt 0:00:05][%cal Rh2h1]} 52. Re7+ {[%emt 0:00:08]} Kd8 {[%emt 0:00:08]} 53. Kg1 {[%emt 0:00:30] Wards off Rh1+} Rdg2+ {[%emt 0:01:21]} (53... Rxa2 54. Rd7+ Ke8 55. Rb7 Rhg2+ (55... Rag2+ 56. Kf1 $11) 56. Kf1 Raf2+ 57. Ke1 Re2+ 58. Kd1 $11) 54. Kf1 {[%emt 0:00:10] [#]} Rc2 $1 {[%emt 0:00:13][%cal Rh2h1]} (54... Rxa2 55. Rd7+ Ke8 56. Rde7+ Kf8 (56... Kd8 57. Rd7+ Ke8 58. Rde7+ Kf8 59. Rgf7+ Kg8 60. Rg7+ Kf8 61. Rgf7+ Kg8 62. Rg7+ Kh8 63. Rh7+ Kg8 64. Rhg7+ $11) 57. Rgf7+ Kg8 58. Rg7+ Kh8 59. Rh7+ Kg8 60. Rhg7+ Kf8 (60... Kh8 61. Rh7+ Kg8 62. Rhg7+ $11) 61. Rgf7+ Kg8 62. Rg7+ $11) 55. Rd7+ {[%emt 0:00:39]} Kc8 {[%emt 0:00:05]} 56. Kg1 {[%emt 0:00:21] Against Rh1+} Rcg2+ {[%emt 0:00:21]} (56... Rxa2 57. Ra7 Kb8 58. Rgb7+ Kc8 59. Rc7+ Kb8 (59... Kd8 60. Rh7 $11) 60. Rcb7+ (60. Rab7+ Ka8 $11) 60... Kc8 61. Rh7 Rhg2+ 62. Kf1 Rgf2+ 63. Ke1 Rfe2+ 64. Kd1 Red2+ 65. Ke1 Re2+ 66. Kd1 $11) 57. Kf1 {[%emt 0:00:12] [#]} Rb2 $1 {[%emt 0:00:14][%cal Rh2h1]} (57... Rxa2 58. Rc7+ Kd8 59. Rgd7+ Ke8 60. Re7+ Kf8 61. Rf7+ Kg8 (61... Ke8 62. Rfe7+ Kd8 63. Rcd7+ Kc8 64. Rc7+ Kb8 65. Rb7+ Ka8 66. Ra7+ Kb8 67. Rab7+ Kc8 68. Rbc7+ Kb8 69. Rb7+ $11) 62. Rg7+ Kh8 (62... Kf8 63. Rcf7+ Ke8 64. Re7+ Kd8 65. Rd7+ Kc8 66. Rc7+ Kd8 67. Rgd7+ Ke8 68. Re7+ Kd8 69. Rcd7+ Kc8 70. Rc7+ Kb8 71. Rb7+ Kc8 72. Rbc7+ Kd8 73. Rcd7+ Kc8 74. Rc7+ $11) 63. Rh7+ Kg8 64. Rhg7+ Kh8 (64... Kf8 65. Rcf7+ Ke8 66. Re7+ Kf8 67. Rgf7+ Kg8 68. Rg7+ Kf8 69. Ref7+ Ke8 70. Re7+ Kd8 71. Rd7+ Kc8 72. Rc7+ Kd8 73. Rgd7+ Ke8 74. Re7+ Kd8 75. Red7+ $11) 65. Rh7+ Kg8 66. Rhg7+ $11) 58. Rc7+ {[%emt 0:00:43]} Kb8 {[%emt 0:00:05]} 59. Kg1 {[%emt 0:00:28] Against Rh1+} Rhd2 {[%emt 0:00:31]} ({Weaker is} 59... Rxa2 60. Rb7+ Ka8 (60... Kc8 61. Rgc7+ Kd8 62. Rf7 $11) 61. Ra7+ Kb8 62. Rgb7+ Kc8 63. Rf7 $11) 60. Rc1 {[%emt 0:01:14] Repels Rd1+} g5 {[%emt 0:01:51]} (60... Rxa2 61. Rg8+ Ka7 62. Rg7+ Kb8 63. Rg8+ Ka7 64. Rg7+ Kb8 $11) 61. a4 {[%emt 0:01:19]} a5 {[%emt 0:00:43]} 62. Rf7 {[%emt 0:00:37]} Rdc2 $2 {[%emt 0:00:56]} (62... Rd4 $19 {Hoping for ...Rg4+.} 63. Re1 Rb7 (63... Rxa4 64. Re8#) (63... Rg4+ $2 64. Kf1 $19)) 63. Re1 $2 {[%emt 0:01:13]} ({Only move:} 63. Rxc2 $1 $15 Rxc2 64. Rf5) 63... Rc7 $2 {[%emt 0:00:11]} (63... Ra2 $19 64. Rb1+ Kc8) 64. Rf5 $15 {[%emt 0:00:14]} Kb7 {[%emt 0:00:34] ...Ka6 is the strong threat.} 65. Rxa5 {[%emt 0:00:24]} g4 {[%emt 0:00:50]} 66. Rh5 {[%emt 0:00:11]} Rc6 {[%emt 0:00:10]} 67. Rh4 {[%emt 0:00:50]} Rg6 {[%emt 0:00:44]} 68. Re7+ {[%emt 0:00:25]} Ka6 {[%emt 0:00:09]} 69. Rh7 {[%emt 0:00:18]} Rbb6 {[%emt 0:00:26]} 70. Kg2 {[%emt 0:00:13]} g3 {[%emt 0:00:10]} 71. Rh1 {[%emt 0:01:25]} (71. Rh5 $11) 71... Rb2+ {[%emt 0:00:08]} 72. Kh3 {[%emt 0:00:21]} Rf2 {[%emt 0:01:04] ( -> ...g2)} 73. Rh8 $2 {[%emt 0:00:19][%mdl 8192]} (73. Re7 $15) 73... g2 {[%emt 0:00:52][%cal Rg2h1] Black mates.} 74. Rg1 {[%emt 0:00:16]} Rf5 {[%emt 0:00:22][%cal Rf5h5]} 75. Kh4 {[%emt 0:00:32]} Rf1 {[%emt 0:00:10] Weighted Error Value: White=0.53/Black=0.27 (precise) .  Loses game:     	White=5     	---        Missed win:     	---       	Black=3      Mistake:       	White=10    	Black=1      Inaccurate:     	White=1     	Black=2      OK:         	White=26    	Black=15     Best:        	White=3     	Black=16     Strong:       	White=1     	Black=4} 0-1

[Event "Djerba Festival Open-A 2024"]
[Site "Djerba"]
[Date "2024.02.22"]
[Round "5.2"]
[White "Domenech, Vianney"]
[Black "Defromont, Benjamin"]
[Result "0-1"]
[ECO "C02"]
[WhiteElo "2254"]
[BlackElo "2423"]
[Annotator "TA"]
[PlyCount "72"]
[EventDate "2024.02.18"]
[EventType "swiss"]
[EventCountry "TUN"]
[SourceTitle "playchess.com"]
[Source "ChessBase"]
[SourceQuality "1"]
[TimeControl "5400+30"]

{[%evp 11,72,0,0,0,0,-94,-84,-118,-117,-131,-118,-91,-113,-109,-106,-144,-136,-151,-109,-131,-110,-145,-109,-145,-114,-116,-117,-116,-119,-124,-114,-167,-152,-221,-222,-354,-345,-352,-342,-355,-320,-460,-446,-458,-383,-404,-404,-389,-372,-385,-379,-437,-441,-437,-406,-433,-427,-590,-587,-1208,-1186,-29997,-610]} 1. d4 {[%emt 0:01:35]} e6 {[%emt 0:00:09]} 2. Nf3 {[%emt 0:00:55]} c5 {[%emt 0:00:25]} 3. c3 {[%emt 0:00:27][%cal Bc2c3,Bc3d4][%mdl 32]} Nc6 {[%emt 0:01:24]} 4. e4 {[%emt 0:06:12]} cxd4 {[%emt 0:01:21]} 5. cxd4 {[%emt 0:00:21]} d5 {[%emt 0:00:06]} 6. e5 {[%emt 0:02:03]} Nge7 {[%emt 0:00:07]} 7. Be2 {[%emt 0:02:39]} Nf5 {[%emt 0:00:39]} 8. O-O {[%emt 0:09:10]} (8. Nc3 $11 {keeps the balance.}) 8... Qb6 $17 {[%emt 0:01:25][%cal Oc8d7]} 9. Re1 {[%emt 0:07:32] Black is better.} Nfxd4 {[%emt 0:02:21] Black is more active.} (9... Ncxd4 10. Nxd4 Nxd4 11. Nc3 $15) 10. Bf1 {[%emt 0:00:08]} Be7 {[%emt 0:08:13]} 11. Nc3 {[%emt 0:03:02]} O-O {[%emt 0:00:43]} 12. Nxd4 {[%emt 0:08:01]} Qxd4 {[%emt 0:00:55]} 13. Bd3 {[%emt 0:00:14]} a6 $1 {[%emt 0:12:22][%cal Ob7b5] Inhibits Nb5.} (13... Nxe5 $2 14. Bxh7+ Kxh7 15. Qxd4 $18) 14. Re3 {[%emt 0:16:09]} f5 {[%emt 0:07:48][%cal Oe7c5]} (14... Nxe5 $2 15. Bxh7+ Kxh7 16. Qxd4 $18) 15. exf6 {[%emt 0:14:03]} Rxf6 {[%emt 0:04:43]} ({Don't play} 15... Bxf6 16. Rh3 h6 17. Be3 $15) ({Resist} 15... Qxf6 16. Rf3 Qe5 17. Rh3 $17) 16. Rh3 {[%emt 0:04:01][%cal Oc1e3] [#] Strongly threatening Be3!} Qxf2+ {[%emt 0:08:01]} 17. Kh1 {[%emt 0:00:05]} h6 {[%emt 0:02:00]} 18. Be3 {[%emt 0:00:34] Inhibits Bc5.} Qxb2 {[%emt 0:00:23]} 19. Na4 {[%emt 0:05:12]} Qe5 {[%emt 0:04:09] ...d4 would now be deadly.} 20. Nb6 {[%emt 0:00:05]} Rb8 {[%emt 0:01:20]} 21. Rb1 {[%emt 0:00:04]} (21. Rc1 $17 {was necessary.}) 21... Qd6 $19 {[%emt 0:05:44]} 22. Qh5 {[%emt 0:08:02]} (22. Rg3 $17 {was worth a try.}) 22... Bd7 {[%emt 0:06:46]} 23. Rg3 {[%emt 0:06:44]} (23. Nxd7 {was called for.} Qxd7 24. Rg3) 23... Be8 {[%emt 0:02:24]} 24. Qg4 {[%emt 0:00:20]} Bf8 {[%emt 0:00:39]} 25. Qh4 {[%emt 0:01:36]} Qd8 {[%emt 0:05:48][%cal Of6f1]} 26. Qh3 {[%emt 0:01:31]} (26. Bxh6 $2 {is the wrong capture.} Rf1+ 27. Rxf1 Qxh4 $19) (26. Bf4 {might work better.}) 26... Bd6 {[%emt 0:01:36]} 27. Rf3 {[%emt 0:01:27]} Ne5 {[%emt 0:01:38]} 28. Rxf6 {[%emt 0:00:03]} Qxf6 {[%emt 0:00:04]} (28... gxf6 29. Qxe6+ Bf7 30. Qf5 Nxd3 31. Nd7 $11) 29. Rf1 {[%emt 0:00:30]} Qe7 {[%emt 0:00:24]} 30. Bb1 {[%emt 0:00:11]} Bg6 {[%emt 0:02:09]} 31. Bd4 {[%emt 0:01:41]} Bxb1 {[%emt 0:00:55]} 32. Rxb1 {[%emt 0:00:02]} Nc6 {[%emt 0:00:31]} 33. Be3 {[%emt 0:01:06]} Qf7 {[%emt 0:01:56]} 34. Kg1 {[%emt 0:01:07]} Rf8 {[%emt 0:00:12] [#] And now ...d4 would win.} 35. Re1 {[%emt 0:00:29]} d4 {[%emt 0:01:44]} 36. Bd2 {[%emt 0:00:18]} Qf2+ {[%emt 0:00:05] Weighted Error Value: White=0.67/Black=0.11 (very precise) .  Mistake:       	White=5     	---        Inaccurate:     	White=7     	---        OK:         	White=11    	Black=15     Best:        	White=2     	Black=2} 0-1

[Event "Djerba Festival Open-A 2024"]
[Site "Djerba"]
[Date "2024.02.22"]
[Round "5.3"]
[White "Eden, James"]
[Black "Djabri, Massinas"]
[Result "0-1"]
[ECO "B90"]
[WhiteElo "2319"]
[BlackElo "2238"]
[Annotator "TA"]
[PlyCount "56"]
[EventDate "2024.02.18"]
[EventType "swiss"]
[EventCountry "TUN"]
[SourceTitle "playchess.com"]
[Source "ChessBase"]
[SourceQuality "1"]
[TimeControl "5400+30"]

{[%evp 10,56,29,9,0,0,0,0,0,0,7,0,8,-7,0,0,22,0,0,0,0,0,10,-36,-54,-182,-163,-172,-164,-178,-183,-181,-185,-388,-364,-321,-159,-209,-196,-200,-163,-185,-213,-649,-572,-1281,-1295,-1273,-1230]} 1. e4 {[%emt 0:01:19]} c5 {[%emt 0:04:46]} 2. Nf3 {[%emt 0:00:11][%cal Bg1f3,Bf3d4,Bd4f5][%mdl 32]} d6 {[%emt 0:00:06][%cal Bd7d6,Bd6d5,Bd5d4][%mdl 32]} 3. d4 {[%emt 0:00:06]} cxd4 {[%emt 0:00:11]} 4. Nxd4 {[%emt 0:00:09]} Nf6 {[%emt 0:00:05]} 5. Nc3 {[%emt 0:00:07]} a6 {[%emt 0:00:03]} 6. a3 {[%emt 0:00:55]} e5 {[%emt 0:01:06]} 7. Nf5 {[%emt 0:00:08]} d5 {[%emt 0:00:39]} 8. Bg5 $1 {[%emt 0:00:10]} d4 {[%emt 0:00:23] The position is equal.} 9. Bxf6 $1 {[%emt 0:00:10]} gxf6 {[%emt 0:00:14]} 10. Nb1 {[%emt 0:00:08]} Be6 {[%emt 0:01:20]} 11. Nd2 {[%emt 0:02:29]} Nc6 {[%emt 0:07:21]} 12. Bd3 {[%emt 0:06:34]} Qc7 {[%emt 0:06:40]} 13. Qf3 {[%emt 0:01:18]} O-O-O {[%emt 0:01:55]} 14. O-O {[%emt 0:01:08]} h5 {[%emt 0:03:50]} 15. b4 {[%emt 0:03:43]} Na7 {[%emt 0:06:28]} 16. Qe2 {[%emt 0:06:04]} (16. Rac1 $11) 16... Kb8 {[%emt 0:02:38]} 17. b5 {[%emt 0:21:09] [#] This costs White the game.} ({White should play} 17. Rfd1 $15) 17... Nxb5 $1 $19 {[%emt 0:07:08]} 18. Bxb5 {[%emt 0:01:27]} axb5 {[%emt 0:00:06]} 19. Qxb5 {[%emt 0:01:40]} Qxc2 {[%emt 0:05:28]} 20. Rab1 {[%emt 0:16:38]} Rd7 {[%emt 0:03:06] Active counter play!} (20... Qxd2 21. Qxb7#) 21. Rfc1 $2 {[%emt 0:02:17]} (21. Rfd1 Rc7 (21... Bxa3 22. Qa5 $15) 22. h3) 21... Qxd2 {[%emt 0:00:37]} 22. Rc6 {[%emt 0:00:16][%cal Oc6e6] And now Rxe6! would win.} Bxa3 {[%emt 0:26:07]} (22... Bxf5 $19 {has better winning chances.} 23. exf5 Qa2 (23... Bxa3 $2 {loses.} 24. Rb6 $18)) 23. Rb6 {[%emt 0:11:41] [#]} (23. Rxe6 $17 Rc8 24. Re8) 23... Bb4 $1 {[%emt 0:03:39]} 24. Ng3 {[%emt 0:10:25] [#]} Rc8 $1 {[%emt 0:06:13]} 25. Rxb4 {[%emt 0:00:18]} Rcc7 {[%emt 0:02:04]} (25... Qe1+ 26. Nf1 Rcc7 (26... Qxe4 27. Rxe6 fxe6 28. Qxd7 $18) 27. Rb1) 26. Qa6 $2 {[%emt 0:02:18]} (26. Nf1 Qc2 27. Ra4) 26... d3 {[%emt 0:02:16] ( -> ...Rc1+). Black is clearly winning.} 27. h4 {[%emt 0:04:26] [#]} Qxb4 {[%emt 0:01:04][%mdl 512]} 28. Rxb4 {[%emt 0:00:20]} d2 {[%emt 0:00:05] Weighted Error Value: White=0.75/Black=0.18 (very precise) .  Missed win:     	---       	Black=1      Mistake:       	White=5     	---        Inaccurate:     	White=1     	---        OK:         	White=4     	Black=5      Best:        	White=2     	Black=1      Strong:       	White=2     	Black=1      Brilliant:      	---       	Black=1} 0-1

[Event "Djerba Festival Open-A 2024"]
[Site "Djerba"]
[Date "2024.02.22"]
[Round "5.4"]
[White "Brahami, Lamine"]
[Black "Amdouni, Zoubaier"]
[Result "0-1"]
[ECO "E11"]
[WhiteElo "2178"]
[BlackElo "2209"]
[Annotator "RC"]
[PlyCount "172"]
[EventDate "2024.02.18"]
[EventType "swiss"]
[EventCountry "TUN"]
[SourceTitle "playchess.com"]
[Source "ChessBase"]
[SourceQuality "1"]
[TimeControl "5400+30"]

1. d4 {[%emt 1:31:00]} Nf6 {[%emt 0:09:41]} 2. c4 {[%emt 0:00:00]} e6 {[%emt 0:00:05]} 3. Nf3 {[%emt 0:00:00]} Bb4+ {[%emt 0:01:34]} 4. Nbd2 {[%emt 0:00:00]} d5 {[%emt 0:01:25]} 5. e3 {[%emt 0:00:00]} O-O {[%emt 0:00:52]} 6. a3 {[%emt 0:00:00]} Bxd2+ {[%emt 0:04:27]} 7. Qxd2 {[%emt 0:00:00]} b6 {[%emt 0:00:30]} 8. cxd5 {[%emt 0:00:00]} exd5 {[%emt 0:05:26]} 9. b4 {[%emt 0:00:00]} c6 {[%emt 0:08:01]} 10. Bb2 {[%emt 0:00:00]} a5 {[%emt 0:01:46]} 11. b5 {[%emt 0:00:00]} cxb5 {[%emt 0:00:33]} 12. Bxb5 {[%emt 0:00:00]} Bd7 {[%emt 0:00:05]} 13. Bd3 {[%emt 0:00:00]} Nc6 {[%emt 0:02:20]} 14. O-O {[%emt 0:00:00]} a4 {[%emt 0:00:42]} 15. Ne5 {[%emt 0:00:00]} Na5 {[%emt 0:21:26]} 16. Qb4 {[%emt 0:00:00]} Nb3 {[%emt 0:03:01]} 17. Rad1 {[%emt 0:00:00]} Be8 {[%emt 0:01:35]} 18. f3 {[%emt 0:00:00]} b5 {[%emt 0:12:12]} 19. Qe1 {[%emt 0:00:00]} Nd7 {[%emt 0:02:29]} 20. Nc6 {[%emt 0:00:00]} Qf6 {[%emt 0:01:04]} 21. Nb4 {[%emt 0:00:00]} Nb6 {[%emt 0:00:19]} 22. e4 {[%emt 0:00:00]} Bd7 {[%emt 0:18:23]} 23. e5 {[%emt 0:00:00]} Qe6 {[%emt 0:01:26]} 24. f4 {[%emt 0:00:00]} f5 {[%emt 0:00:37]} 25. Kh1 {[%emt 0:00:00]} Nc4 {[%emt 0:01:33]} 26. Qe2 {[%emt 0:00:00]} Be8 {[%emt 0:00:35]} 27. Bb1 {[%emt 0:00:00]} Bh5 {[%emt 0:01:12]} 28. Qxh5 {[%emt 0:00:00]} Nxb2 {[%emt 0:00:02]} 29. Rde1 {[%emt 0:00:00]} Nxd4 {[%emt 0:00:58]} 30. Rf2 {[%emt 0:00:00]} Nc4 {[%emt 0:00:24]} 31. Rd1 {[%emt 0:00:00]} Nc6 {[%emt 0:00:30]} 32. Nxd5 {[%emt 0:00:00]} Rad8 {[%emt 0:00:20]} 33. Nc7 {[%emt 0:00:00]} Qf7 {[%emt 0:00:49]} 34. Qxf7+ {[%emt 0:00:00]} Kxf7 {[%emt 0:00:01]} 35. Rc1 {[%emt 0:00:00]} Nd4 {[%emt 0:00:24]} 36. h3 {[%emt 0:00:00]} Rc8 {[%emt 0:01:12]} 37. Na6 {[%emt 0:01:22]} Nxa3 {[%emt 0:00:02]} 38. Ba2+ {[%emt 0:01:41]} Ke7 {[%emt 0:00:07]} 39. Rg1 {[%emt 0:01:43]} Rc2 {[%emt 0:00:21]} 40. Rxc2 {[%emt 0:00:19]} Naxc2 {[%emt 0:00:01]} 41. Rb1 {[%emt 0:00:55]} Rc8 {[%emt 0:00:54]} 42. Nb4 {[%emt 0:00:36]} Ne3 {[%emt 0:01:15]} 43. Kg1 {[%emt 0:02:33]} Ndc2 {[%emt 0:00:49]} 44. Nd3 {[%emt 0:01:50]} Na3 {[%emt 0:00:11]} 45. Re1 {[%emt 0:00:28]} Nxg2 {[%emt 0:00:23]} 46. Re2 {[%emt 0:00:14]} Nh4 {[%emt 0:00:26]} 47. Nb4 {[%emt 0:00:17]} Rc5 {[%emt 0:01:00]} 48. Kf2 {[%emt 0:01:41]} Nc4 {[%emt 0:00:13]} 49. Kg3 {[%emt 0:00:13]} Ng6 {[%emt 0:00:13]} 50. Bb1 {[%emt 0:01:25]} Nb6 {[%emt 0:00:56]} 51. Bxf5 {[%emt 0:01:48]} Rc4 {[%emt 0:00:19]} 52. Re4 {[%emt 0:01:41]} a3 {[%emt 0:00:42]} 53. Rxc4 {[%emt 0:01:26]} Nxc4 {[%emt 0:00:30]} 54. h4 {[%emt 0:00:22]} Nf8 {[%emt 0:00:37]} 55. Bb1 {[%emt 0:00:55]} g6 {[%emt 0:00:21]} 56. Nd5+ {[%emt 0:00:27]} Kd7 {[%emt 0:00:24]} 57. Nb4 {[%emt 0:00:33]} Kc7 {[%emt 0:00:32]} 58. Ba2 {[%emt 0:01:48]} Kb6 {[%emt 0:00:06]} 59. Nc2 {[%emt 0:02:20]} Kc5 {[%emt 0:00:36]} 60. Bxc4 {[%emt 0:00:50]} bxc4 {[%emt 0:00:13]} 61. Nxa3 {[%emt 0:00:04]} Kb4 {[%emt 0:00:41]} 62. Nc2+ {[%emt 0:00:09]} Kc3 {[%emt 0:00:14]} 63. Ne3 {[%emt 0:00:07]} Kd3 {[%emt 0:00:11]} 64. Nd5 {[%emt 0:02:50]} Ne6 {[%emt 0:01:11]} 65. h5 {[%emt 0:00:42]} Kd4 {[%emt 0:00:35]} 66. hxg6 {[%emt 0:00:36]} hxg6 {[%emt 0:00:04]} 67. Nb4 {[%emt 0:00:10]} Ke4 {[%emt 0:00:09]} 68. Kg4 {[%emt 0:00:51]} Nxf4 {[%emt 0:00:17]} 69. Kg5 {[%emt 0:00:31]} Kxe5 {[%emt 0:00:21]} 70. Nc2 {[%emt 0:00:25]} Ke4 {[%emt 0:00:20]} 71. Na3 {[%emt 0:00:37]} c3 {[%emt 0:00:08]} 72. Nc2 {[%emt 0:00:08]} Kd3 {[%emt 0:01:38]} 73. Nb4+ {[%emt 0:00:25]} Ke3 {[%emt 0:01:16]} 74. Nc2+ {[%emt 0:00:56]} Kd2 {[%emt 0:00:37]} 75. Nd4 {[%emt 0:00:31]} Kd3 {[%emt 0:00:30]} 76. Nb3 {[%emt 0:00:24]} Kc4 {[%emt 0:00:28]} 77. Na1 {[%emt 0:00:15]} Ne2 {[%emt 0:00:32]} 78. Kxg6 {[%emt 0:00:18]} Kb4 {[%emt 0:00:34]} 79. Kf5 {[%emt 0:00:41]} Ka3 {[%emt 0:00:09]} 80. Nc2+ {[%emt 0:00:05]} Kb3 {[%emt 0:00:24]} 81. Ne3 {[%emt 0:00:22]} Ng3+ {[%emt 0:00:33]} 82. Kf4 {[%emt 0:01:22]} Nf1 {[%emt 0:00:05]} 83. Nf5 {[%emt 0:00:23]} Kc4 {[%emt 0:00:19]} 84. Nd6+ {[%emt 0:00:39]} Kb4 {[%emt 0:00:53]} 85. Ne4 {[%emt 0:00:30]} c2 {[%emt 0:00:10]} 86. Nf2 {[%emt 0:00:12]} c1=Q+ {[%emt 0:00:07]} 0-1